fUSD/lending_fUSD_20250214
["ID","MTS","AMOUNT","RATE_DAILY","PERIOD"]
[353120335,1739566299801,-500.0,0.00014356,2]
[353120336,1739566299811,-757.95,0.00014356,2]
[353120337,1739566299823,-565.76,0.00014356,2]
[353120338,1739566299834,-500.0,0.00014356,2]
[353120339,1739566299844,-237.00892379,0.00014356,2]
[353120340,1739566299855,-500.0,0.00014356,2]
[353120341,1739566299866,-500.0,0.00014356,2]
[353120342,1739566299876,-1107.64,0.00014356,2]
[353120343,1739566299887,-500.0,0.00014356,2]
[353120344,1739566299897,-500.0,0.00014356,2]
[353120345,1739566299908,-167.764912,0.00014356,2]
[353120346,1739566299919,-500.0,0.00014356,2]
[353120347,1739566299929,-500.0,0.00014356,2]
[353120348,1739566299940,-536.38,0.00014356,2]
[353120349,1739566299951,-500.0,0.00014356,2]
[353120350,1739566299962,-617.81,0.00014356,2]
[353120351,1739566299973,-587.28,0.00014356,2]
[353120352,1739566299984,-500.0,0.00014356,2]
[353120353,1739566299995,-750.15,0.00014356,2]
[353120354,1739566300005,-500.0,0.00014356,2]
[353120355,1739566300016,-2392.8,0.00014356,2]
[353120356,1739566300027,-591.54,0.00014356,2]
[353120357,1739566300037,-500.0,0.00014356,2]
[353120358,1739566300048,-500.0,0.00014356,2]
[353120359,1739566300058,-500.0,0.00014356,2]
[353120360,1739566300068,-583.03,0.00014356,2]
[353120361,1739566300079,-1274.03,0.00014356,2]
[353120362,1739566300089,-500.0,0.00014356,2]
[353120363,1739566300100,-500.0,0.00014356,2]
[353120364,1739566300111,-500.0,0.00014356,2]
[353120365,1739566300122,-800.51,0.00014356,2]
[353120366,1739566300132,-1788.5,0.00014356,2]
[353120367,1739566300143,-500.0,0.00014356,2]
[353120368,1739566300153,-500.0,0.00014356,2]
[353120369,1739566300351,-1330.5,0.00014356,2]
[353120370,1739566300365,-500.0,0.00014356,2]
[353120371,1739566300380,-500.0,0.00014356,2]
[353120372,1739566300390,-500.0,0.00014356,2]
[353120373,1739566300399,-740.69,0.00014356,2]
[353120374,1739566300409,-500.0,0.00014356,2]
[353120375,1739566300419,-1124.22,0.00014356,2]
[353120376,1739566300429,-500.0,0.00014356,2]
[353120377,1739566300439,-500.0,0.00014356,2]
[353120378,1739566300449,-500.0,0.00014356,2]
[353120379,1739566300458,-569.68,0.00014356,2]
[353120380,1739566300468,-500.0,0.00014356,2]
[353120381,1739566300478,-500.0,0.00014356,2]
[353120382,1739566300487,-500.0,0.00014356,2]
[353120383,1739566300497,-783.23,0.00014356,2]
[353120384,1739566300507,-1019.53,0.00014356,2]
[353120385,1739566300517,-1273.67,0.00014356,2]
[353120386,1739566300526,-500.0,0.00014356,2]
[353120387,1739566300536,-719.23,0.00014356,2]
[353120388,1739566300545,-1340.4,0.00014356,2]
[353120389,1739566300555,-500.0,0.00014356,2]
[353120390,1739566300564,-912.68,0.00014356,2]
[353120391,1739566300574,-892.96,0.00014356,2]
[353120392,1739566300584,-500.0,0.00014356,2]
[353120393,1739566300593,-237.98406692,0.00014356,2]
[353120394,1739566300603,-1331.32,0.00014356,2]
[353120395,1739566300613,-558.34,0.00014356,2]
[353120396,1739566300623,-564.14,0.00014356,2]
[353120397,1739566300632,-500.0,0.00014356,2]
[353120398,1739566300642,-500.0,0.00014356,2]
[353120399,1739566300652,-513.62,0.00014356,2]
[353120400,1739566300662,-500.0,0.00014356,2]
[353120401,1739566300671,-678.74,0.00014356,2]
[353120402,1739566300681,-583.73,0.00014356,2]
[353120403,1739566300690,-1406.71,0.00014356,2]
[353120404,1739566300700,-964.12,0.00014356,2]
[353120405,1739566300709,-793.22,0.00014356,2]
[353120406,1739566300719,-500.0,0.00014356,2]
[353120407,1739566300730,-1085.56,0.00014356,2]
[353120408,1739566300739,-601.23114684,0.00014356,2]
[353120409,1739566300749,-541.36,0.00014356,2]
[353120410,1739566300759,-667.26,0.00014356,2]
[353120411,1739566300768,-500.0,0.00014356,2]
[353120412,1739566300778,-673.36,0.00014356,2]
[353120413,1739566300787,-519.28718071,0.00014356,2]
[353120414,1739566300797,-1082.27,0.00014356,2]
[353120415,1739566300807,-500.0,0.00014356,2]
[353120416,1739566300817,-533.8,0.00014356,2]
[353120417,1739566300828,-500.0,0.00014356,2]
[353120418,1739566300838,-735.54,0.00014356,2]
[353120419,1739566300847,-669.31,0.00014356,2]
[353120420,1739566300857,-500.0,0.00014356,2]
[353120421,1739566300866,-500.0,0.00014356,2]
[353120422,1739566300876,-500.0,0.00014356,2]
[353120423,1739566300886,-883.81,0.00014356,2]
[353120424,1739566300896,-500.0,0.00014356,2]
[353120425,1739566300906,-500.0,0.00014356,2]
[353120426,1739566300917,-1107.54,0.00014356,2]
[353120427,1739566300928,-1293.24,0.00014356,2]
[353120428,1739566300938,-925.37,0.00014356,2]
[353120429,1739566300948,-757.13,0.00014356,2]
[353120430,1739566300958,-500.0,0.00014356,2]
[353120431,1739566300968,-500.0,0.00014356,2]
[353120432,1739566300978,-868.29,0.00014356,2]
[353120433,1739566300987,-500.0,0.00014356,2]
[353120434,1739566300997,-500.0,0.00014356,2]
[353120435,1739566301006,-653.19,0.00014356,2]
[353120436,1739566301016,-534.17,0.00014356,2]
[353120437,1739566301026,-500.0,0.00014356,2]
[353120438,1739566301035,-631.96,0.00014356,2]
[353120439,1739566301045,-500.0,0.00014356,2]
[353120440,1739566301054,-818.28,0.00014356,2]
[353120441,1739566301064,-694.26,0.00014356,2]
[353120442,1739566301073,-500.0,0.00014356,2]
[353120443,1739566301085,-897.15,0.00014356,2]
[353120444,1739566301095,-898.94,0.00014356,2]
[353120445,1739566301105,-500.0,0.00014356,2]
[353120446,1739566301115,-500.0,0.00014356,2]
[353120447,1739566301125,-621.48,0.00014356,2]
[353120448,1739566301135,-500.0,0.00014356,2]
[353120449,1739566301145,-738.99,0.00014356,2]
[353120450,1739566301155,-500.0,0.00014356,2]
[353120451,1739566301165,-500.0,0.00014356,2]
[353120452,1739566301175,-551.59,0.00014356,2]
[353120453,1739566301184,-1738.29,0.00014356,2]
[353120454,1739566301194,-537.31,0.00014356,2]
[353120455,1739566301204,-500.0,0.00014356,2]
[353120456,1739566301216,-644.46,0.00014356,2]
[353120457,1739566301226,-500.0,0.00014356,2]
[353120458,1739566301236,-681.31,0.00014356,2]
[353120459,1739566301247,-500.0,0.00014356,2]
[353120460,1739566301258,-518.76,0.00014356,2]
[353120461,1739566301267,-500.0,0.00014356,2]
[353120462,1739566301277,-500.0,0.00014356,2]
[353120463,1739566301288,-1083.31,0.00014356,2]
[353120464,1739566301298,-266.77695235,0.00014356,2]
[353120465,1739566301307,-502.76,0.00014356,2]
[353120466,1739566301317,-508.01,0.00014356,2]
[353120467,1739566301328,-1023.77,0.00014356,2]
[353120468,1739566301338,-500.0,0.00014356,2]
[353120469,1739566301348,-573.89,0.00014356,2]
[353120470,1739566301358,-500.0,0.00014356,2]
[353120471,1739566301367,-500.0,0.00014356,2]
[353120472,1739566301377,-927.77,0.00014356,2]
[353120473,1739566301387,-616.63,0.00014356,2]
[353120474,1739566301397,-500.0,0.00014356,2]
[353120475,1739566301407,-500.0,0.00014356,2]
[353120476,1739566301417,-1426.12,0.00014356,2]
[353120477,1739566301426,-1153.11,0.00014356,2]
[353120478,1739566301436,-626.41,0.00014356,2]
[353120479,1739566301446,-500.0,0.00014356,2]
[353120480,1739566301455,-1100.39,0.00014356,2]
[353120481,1739566301465,-583.6,0.00014356,2]
[353120482,1739566301475,-675.34,0.00014356,2]
[353120483,1739566301485,-966.1,0.00014356,2]
[353120484,1739566301495,-500.0,0.00014356,2]
[353120485,1739566301504,-500.0,0.00014356,2]
[353120486,1739566301515,-942.55,0.00014356,2]
[353120487,1739566301524,-1213.1,0.00014356,2]
[353120488,1739566301533,-863.9,0.00014356,2]
[353120489,1739566301543,-500.0,0.00014356,2]
[353120490,1739566301553,-500.0,0.00014356,2]
[353120491,1739566301563,-500.0,0.00014356,2]
[353120492,1739566301572,-853.01,0.00014356,2]
[353120493,1739566301584,-507.29,0.00014356,2]
[353120494,1739566301594,-500.0,0.00014356,2]
[353120495,1739566301603,-850.74,0.00014356,2]
[353120496,1739566301614,-1067.49,0.00014356,2]
[353120497,1739566301624,-674.85,0.00014356,2]
[353120498,1739566301633,-614.03,0.00014356,2]
[353120499,1739566301643,-953.81,0.00014356,2]
[353120500,1739566301653,-936.1,0.00014356,2]
[353120501,1739566301662,-704.52,0.00014356,2]
[353120502,1739566301672,-241.307772,0.00014356,2]
[353120503,1739566301682,-500.0,0.00014356,2]
[353120504,1739566301692,-1852.67,0.00014356,2]
[353120505,1739566301702,-500.0,0.00014356,2]
[353120506,1739566301712,-597.11,0.00014356,2]
[353120507,1739566301721,-2467.3,0.00014356,2]
[353120508,1739566301730,-2316.56,0.00014356,2]
[353120509,1739566301740,-500.0,0.00014356,2]
[353120510,1739566301750,-500.0,0.00014356,2]
[353120511,1739566301761,-842.17,0.00014356,2]
[353120512,1739566301771,-2018.88,0.00014356,2]
[353120513,1739566301781,-1346.43,0.00014356,2]
[353120514,1739566301791,-931.73,0.00014356,2]
[353120515,1739566301801,-500.0,0.00014356,2]
[353120516,1739566301811,-654.79,0.00014356,2]
[353120517,1739566301820,-592.75,0.00014356,2]
[353120518,1739566301831,-1316.77,0.00014356,2]
[353120519,1739566301840,-500.0,0.00014356,2]
[353120520,1739566301850,-1311.38,0.00014356,2]
[353120521,1739566301859,-1927.46,0.00014356,2]
[353120522,1739566301870,-500.0,0.00014356,2]
[353120523,1739566301880,-1226.1,0.00014356,2]
[353120524,1739566301890,-1983.45,0.00014356,2]
[353120525,1739566301900,-1497.33,0.00014356,2]
[353120526,1739566301909,-1529.01,0.00014356,2]
[353120527,1739566301919,-2406.51,0.00014356,2]
[353120528,1739566301929,-670.85,0.00014356,2]
[353120529,1739566301940,-503.07,0.00014356,2]
[353120530,1739566301951,-514.11,0.00014356,2]
[353120531,1739566301961,-701.6,0.00014356,2]
[353120532,1739566301971,-1219.04,0.00014356,2]
[353120533,1739566301981,-2433.16,0.00014356,2]
[353120534,1739566301991,-1086.21,0.00014356,2]
[353120535,1739566302001,-1332.76,0.00014356,2]
[353120536,1739566302011,-500.0,0.00014356,2]
[353120537,1739566302020,-500.0,0.00014356,2]
[353120538,1739566302030,-1041.19,0.00014356,2]
[353120539,1739566302039,-500.0,0.00014356,2]
[353120540,1739566302049,-500.0,0.00014356,2]
[353120541,1739566302059,-1357.25,0.00014356,2]
[353120542,1739566302068,-1158.9,0.00014356,2]
[353120543,1739566302078,-1814.98,0.00014356,2]
[353120544,1739566302088,-3315.84,0.00014356,2]
[353120545,1739566302097,-1307.26,0.00014356,2]
[353120546,1739566302107,-1092.63,0.00014356,2]
[353120547,1739566302116,-1239.09,0.00014356,2]
[353120548,1739566302126,-1164.5,0.00014356,2]
[353120549,1739566302135,-1608.88,0.00014356,2]
[353120550,1739566302144,-500.0,0.00014356,2]
[353120551,1739566302154,-1805.89,0.00014356,2]
[353120552,1739566302163,-2219.87,0.00014356,2]
[353120553,1739566302173,-1235.55,0.00014356,2]
[353120554,1739566302183,-604.24,0.00014356,2]
[353120555,1739566302193,-1082.39,0.00014356,2]
[353120556,1739566302204,-2116.85,0.00014356,2]
[353120557,1739566302216,-201.42832034,0.00014356,2]
[353120558,1739566302225,-661.33,0.00014356,2]
[353120559,1739566302236,-2112.18,0.00014356,2]
[353120560,1739566302247,-500.0,0.00014356,2]
[353120561,1739566302256,-1872.0,0.00014356,2]
[353120562,1739566302266,-1558.85,0.00014356,2]
[353120563,1739566302275,-500.0,0.00014356,2]
[353120564,1739566302286,-1157.73,0.00014356,2]
[353120565,1739566302295,-500.0,0.00014356,2]
[353120566,1739566302305,-699.76,0.00014356,2]
[353120567,1739566302315,-2970.66,0.00014356,2]
[353120568,1739566302324,-508.25,0.00014356,2]
[353120569,1739566302334,-500.0,0.00014356,2]
[353120570,1739566302344,-586.78,0.00014356,2]
[353120571,1739566302354,-500.0,0.00014356,2]
[353120572,1739566302364,-929.92,0.00014356,2]
[353120573,1739566302374,-500.0,0.00014356,2]
[353120574,1739566302384,-635.89,0.00014356,2]
[353120575,1739566302394,-2913.77,0.00014356,2]
[353120576,1739566302404,-4186.79,0.00014356,2]
[353120577,1739566302413,-902.65,0.00014356,2]
[353120578,1739566302422,-1399.17,0.00014356,2]
[353120579,1739566302432,-2196.62,0.00014356,2]
[353120580,1739566302442,-500.0,0.00014356,2]
[353120581,1739566302452,-500.0,0.00014356,2]
[353120582,1739566302462,-2628.96,0.00014356,2]
[353120583,1739566302472,-1928.84,0.00014356,2]
[353120584,1739566302481,-1158.56,0.00014356,2]
[353120585,1739566302491,-1153.76,0.00014356,2]
[353120586,1739566302501,-1479.96,0.00014356,2]
[353120587,1739566302510,-739.42,0.00014356,2]
[353120588,1739566302519,-1028.48,0.00014356,2]
[353120589,1739566302528,-1597.62,0.00014356,2]
[353120590,1739566302537,-500.0,0.00014356,2]
[353120591,1739566302546,-1906.43,0.00014356,2]
[353120592,1739566302556,-151.0,0.00014356,2]
[353120593,1739566302566,-3241.0,0.00014356,2]
[353120594,1739566302575,-816.33,0.00014356,2]
[353120595,1739566302586,-500.0,0.00014356,2]
[353120596,1739566302596,-849.22,0.00014356,2]
[353120597,1739566302606,-1191.81,0.00014356,2]
[353120598,1739566302616,-1332.32,0.00014356,2]
[353120599,1739566302626,-939.58,0.00014356,2]
[353120600,1739566302636,-527.13,0.00014356,2]
[353120601,1739566302646,-1257.55,0.00014356,2]
[353120602,1739566302656,-2807.42,0.00014356,2]
[353120603,1739566302666,-1704.06,0.00014356,2]
[353120604,1739566302676,-500.0,0.00014356,2]
[353120605,1739566302686,-2998.46,0.00014356,2]
[353120606,1739566302696,-556.02,0.00014356,2]
[353120607,1739566302705,-500.0,0.00014356,2]
[353120608,1739566302715,-2289.6,0.00014356,2]
[353120609,1739566302725,-712.61,0.00014356,2]
[353120610,1739566302734,-1979.01,0.00014356,2]
[353120611,1739566302744,-1375.26,0.00014356,2]
[353120612,1739566302753,-2871.06,0.00014356,2]
[353120613,1739566302764,-3197.44,0.00014356,2]
[353120614,1739566302774,-1256.84,0.00014356,2]
[353120615,1739566302784,-500.0,0.00014356,2]
[353120616,1739566302794,-500.0,0.00014356,2]
[353120617,1739566302803,-615.54,0.00014356,2]
[353120618,1739566302813,-808.016187,0.00014356,2]
[353120619,1739566302823,-500.0,0.00014356,2]
[353120620,1739566302834,-625.90945963,0.00014356,2]
[353120621,1739566302844,-808.016187,0.00014356,2]
[353120622,1739566302854,-500.0,0.00014356,2]
[353120623,1739566302863,-1359.06,0.00014356,2]
[353120624,1739566302873,-1995.79,0.00014356,2]
[353120625,1739566302883,-2330.96,0.00014356,2]
[353120626,1739566302893,-10858.08,0.00014356,2]
[353120627,1739566302903,-907.98,0.00014356,2]
[353120628,1739566302912,-500.0,0.00014356,2]
[353120629,1739566302922,-500.0,0.00014356,2]
[353120630,1739566302932,-729.91,0.00014356,2]
[353120631,1739566302942,-531.25,0.00014356,2]
[353120632,1739566302952,-500.0,0.00014356,2]
[353120633,1739566302961,-524.39,0.00014356,2]
[353120634,1739566302971,-1278.12,0.00014356,2]
[353120635,1739566302981,-925.72,0.00014356,2]
[353120636,1739566302991,-534.03,0.00014356,2]
[353120637,1739566303001,-2822.56,0.00014356,2]
[353120638,1739566303011,-1717.5,0.00014356,2]
[353120639,1739566303021,-2435.86,0.00014356,2]
[353120640,1739566303030,-500.0,0.00014356,2]
[353120641,1739566303040,-578.31393359,0.00014356,2]
[353120642,1739566303050,-500.0,0.00014356,2]
[353120643,1739566303059,-1647.15,0.00014356,2]
[353120644,1739566303069,-760.05,0.00014356,2]
[353120645,1739566303078,-2378.56,0.00014356,2]
[353120646,1739566303088,-500.0,0.00014356,2]
[353120647,1739566303097,-2543.87,0.00014356,2]
[353120648,1739566303107,-1674.92,0.00014356,2]
[353120649,1739566303116,-2943.72,0.00014356,2]
[353120650,1739566303126,-605.91,0.00014356,2]
[353120651,1739566303135,-655.62,0.00014356,2]
[353120652,1739566303146,-512.74088686,0.00014356,2]
[353120653,1739566303156,-500.0,0.00014356,2]
[353120654,1739566303166,-500.0,0.00014356,2]
[353120655,1739566303175,-5616.87,0.00014356,2]
[353120656,1739566303184,-1726.03,0.00014356,2]
[353120657,1739566303194,-3193.42,0.00014356,2]
[353120658,1739566303208,-2562.68,0.00014356,2]
[353120659,1739566303217,-2524.45,0.00014356,2]
[353120660,1739566303227,-3694.54,0.00014356,2]
[353120661,1739566303237,-500.0,0.00014356,2]
[353120662,1739566303248,-2033.18,0.00014356,2]
[353120663,1739566303258,-550.44,0.00014356,2]
[353120664,1739566303267,-500.0,0.00014356,2]
[353120665,1739566303277,-2191.43,0.00014356,2]
[353120666,1739566303289,-645.64,0.00014356,2]
[353120667,1739566303300,-2232.76,0.00014356,2]
[353120668,1739566303310,-643.31,0.00014356,2]
[353120669,1739566303320,-539.61,0.00014356,2]
[353120670,1739566303330,-607.81,0.00014356,2]
[353120671,1739566303339,-1959.93,0.00014356,2]
[353120672,1739566303349,-500.0,0.00014356,2]
[353120673,1739566303359,-1505.1,0.00014356,2]
[353120674,1739566303369,-8241.8,0.00014356,2]
[353120675,1739566303379,-1325.07,0.00014356,2]
[353120676,1739566303389,-150.0,0.00014356,2]
[353120677,1739566303399,-500.0,0.00014356,2]
[353120678,1739566303409,-886.49,0.00014356,2]
[353120679,1739566303418,-1367.66,0.00014356,2]
[353120680,1739566303428,-731.34,0.00014356,2]
[353120681,1739566303437,-500.0,0.00014356,2]
[353120682,1739566303447,-796.57,0.00014356,2]
[353120683,1739566303457,-500.0,0.00014356,2]
[353120684,1739566303468,-500.0,0.00014356,2]
[353120685,1739566303478,-660.92,0.00014356,2]
[353120686,1739566303489,-2622.2,0.00014356,2]
[353120687,1739566303499,-500.0,0.00014356,2]
[353120688,1739566303508,-899.83,0.00014356,2]
[353120689,1739566303518,-719.16,0.00014356,2]
[353120690,1739566303528,-3674.69,0.00014356,2]
[353120691,1739566303537,-1508.59,0.00014356,2]
[353120692,1739566303547,-2330.47,0.00014356,2]
[353120693,1739566303556,-860.46,0.00014356,2]
[353120694,1739566303566,-4851.48,0.00014356,2]
[353120695,1739566303575,-500.0,0.00014356,2]
[353120696,1739566303586,-3084.92,0.00014356,2]
[353120697,1739566303595,-500.0,0.00014356,2]
[353120698,1739566303605,-667.69,0.00014356,2]
[353120699,1739566303614,-1520.32,0.00014356,2]
[353120700,1739566303625,-569.14,0.00014356,2]
[353120701,1739566303635,-883.89,0.00014356,2]
[353120702,1739566303644,-1295.15,0.00014356,2]
[353120703,1739566303655,-1976.66,0.00014356,2]
[353120704,1739566303664,-1194.78,0.00014356,2]
[353120705,1739566303674,-500.0,0.00014356,2]
[353120706,1739566303685,-1135.37,0.00014356,2]
[353120707,1739566303695,-3133.2,0.00014356,2]
[353120708,1739566303886,-2227.17,0.00014356,2]
[353120709,1739566303897,-1929.53,0.00014356,2]
[353120710,1739566303908,-500.0,0.00014356,2]
[353120711,1739566303918,-802.32,0.00014356,2]
[353120712,1739566303927,-519.05,0.00014356,2]
[353120713,1739566303936,-1248.93,0.00014356,2]
[353120714,1739566303946,-1861.87,0.00014356,2]
[353120715,1739566303957,-688.14,0.00014356,2]
[353120716,1739566303967,-662.93,0.00014356,2]
[353120717,1739566303976,-684.97,0.00014356,2]
[353120718,1739566303986,-517.09,0.00014356,2]
[353120719,1739566303996,-1152.88,0.00014356,2]
[353120720,1739566304006,-1705.16,0.00014356,2]
[353120721,1739566304016,-1236.6,0.00014356,2]
[353120722,1739566304026,-538.64297832,0.00014356,2]
[353120723,1739566304036,-4024.19,0.00014356,2]
[353120724,1739566304046,-727.92,0.00014356,2]
[353120725,1739566304056,-150.0,0.00014358,2]
[353120726,1739566304066,-150.0,0.00014379,2]
[353120727,1739566304076,-150.0,0.00014395,2]
[353120728,1739566304086,-82239.93543522,0.000144,2]
[353120729,1739566304096,-151.0,0.000144,2]
[353120730,1739566304105,-150.0,0.00014403,2]
[353120731,1739566304116,-1773.0496636,0.00014427,2]
[353120732,1739566304125,-2530.5976106,0.00014427,2]
[353120733,1739566304135,-942.1589071,0.00014427,2]
[353120734,1739566304145,-400.3246161,0.00014427,2]
[353120735,1739566304155,-1021.0154606,0.00014427,2]
[353120736,1739566304165,-4496.4517352,0.00014427,2]
[353120737,1739566304175,-172.6535934,0.00014427,2]
[353120738,1739566304184,-2000.0,0.00014437,2]
[353120739,1739566304194,-874.968359,0.00014438,2]
[353120740,1739566304206,-851.952662,0.00014438,2]
[353120741,1739566304216,-155.533794,0.00014438,2]
[353120742,1739566304226,-500.0,0.00014438,2]
[353120743,1739566304236,-500.0,0.00014438,2]
[353120744,1739566304247,-500.0,0.00014438,2]
[353120745,1739566304257,-500.0,0.00014438,2]
[353120746,1739566304267,-225.77309466,0.00014438,2]
[353120747,1739566304276,-500.0,0.00014438,2]
[353120748,1739566304288,-500.0,0.00014438,2]
[353120749,1739566304298,-189.91712076,0.00014438,2]
[353120750,1739566304307,-536.18,0.00014438,2]
[353120751,1739566304318,-500.0,0.00014438,2]
[353120752,1739566304329,-500.0,0.00014438,2]
[353120753,1739566304340,-503.69,0.00014438,2]
[353120754,1739566304350,-500.0,0.00014438,2]
[353120755,1739566304360,-500.0,0.00014438,2]
[353120756,1739566304369,-500.0,0.00014438,2]
[353120757,1739566304378,-500.0,0.00014438,2]
[353120758,1739566304389,-506.51,0.00014438,2]
[353120759,1739566304399,-500.0,0.00014438,2]
[353120760,1739566304409,-588.84665103,0.00014438,2]
[353120761,1739566304420,-500.0,0.00014438,2]
[353120762,1739566304429,-500.0,0.00014438,2]
[353120763,1739566304439,-500.0,0.00014438,2]
[353120764,1739566304449,-558.31,0.00014438,2]
[353120765,1739566304459,-500.0,0.00014438,2]
[353120766,1739566304468,-519.27,0.00014438,2]
[353120767,1739566304479,-500.0,0.00014438,2]
[353120768,1739566304488,-500.0,0.00014438,2]
[353120769,1739566304498,-1200.0,0.00014438,2]
[353120770,1739566304507,-512.74,0.00014438,2]
[353120771,1739566304517,-500.0,0.00014438,2]
[353120772,1739566304527,-757.95,0.00014438,2]
[353120773,1739566304537,-565.76,0.00014438,2]
[353120774,1739566304546,-500.0,0.00014438,2]
[353120775,1739566304556,-500.0,0.00014438,2]
[353120776,1739566304567,-500.0,0.00014438,2]
[353120777,1739566304577,-1107.64,0.00014438,2]
[353120778,1739566304587,-500.0,0.00014438,2]
[353120779,1739566304598,-500.0,0.00014438,2]
[353120780,1739566304607,-500.0,0.00014438,2]
[353120781,1739566304617,-353.50167762,0.00014438,2]
[353120782,1739566304627,-536.38,0.00014438,2]
[353120783,1739566304636,-500.0,0.00014438,2]
[353120784,1739566304645,-617.81,0.00014438,2]
[353120785,1739566304654,-587.28,0.00014438,2]
[353120786,1739566304664,-500.0,0.00014438,2]
[353120787,1739566304674,-750.15,0.00014438,2]
[353120788,1739566304685,-500.0,0.00014438,2]
[353120789,1739566304695,-2392.8,0.00014438,2]
[353120790,1739566304705,-591.54,0.00014438,2]
[353120791,1739566304716,-500.0,0.00014438,2]
[353120792,1739566304725,-500.0,0.00014438,2]
[353120793,1739566304735,-500.0,0.00014438,2]
[353120794,1739566304745,-583.03,0.00014438,2]
[353120795,1739566304755,-1274.03,0.00014438,2]
[353120796,1739566304765,-500.0,0.00014438,2]
[353120797,1739566304775,-500.0,0.00014438,2]
[353120798,1739566304784,-500.0,0.00014438,2]
[353120799,1739566304794,-800.51,0.00014438,2]
[353120800,1739566304804,-1788.5,0.00014438,2]
[353120801,1739566304814,-500.0,0.00014438,2]
[353120802,1739566304824,-500.0,0.00014438,2]
[353120803,1739566304835,-1330.5,0.00014438,2]
[353120804,1739566304845,-500.0,0.00014438,2]
[353120805,1739566304856,-500.0,0.00014438,2]
[353120806,1739566304866,-393.41486495,0.00014438,2]
[353120807,1739566304875,-740.69,0.00014438,2]
[353120808,1739566304885,-500.0,0.00014438,2]
[353120809,1739566304894,-1124.22,0.00014438,2]
[353120810,1739566304904,-500.0,0.00014438,2]
[353120811,1739566304914,-500.0,0.00014438,2]
[353120812,1739566304925,-500.0,0.00014438,2]
[353120813,1739566304934,-569.68,0.00014438,2]
[353120814,1739566304944,-500.0,0.00014438,2]
[353120815,1739566304954,-500.0,0.00014438,2]
[353120816,1739566304963,-500.0,0.00014438,2]
[353120817,1739566304974,-783.23,0.00014438,2]
[353120818,1739566304984,-1019.53,0.00014438,2]
[353120819,1739566304993,-1273.67,0.00014438,2]
[353120820,1739566305003,-500.0,0.00014438,2]
[353120821,1739566305013,-719.23,0.00014438,2]
[353120822,1739566305022,-1340.4,0.00014438,2]
[353120823,1739566305032,-500.0,0.00014438,2]
[353120824,1739566305042,-912.68,0.00014438,2]
[353120825,1739566305052,-892.96,0.00014438,2]
[353120826,1739566305062,-500.0,0.00014438,2]
[353120827,1739566305072,-1331.32,0.00014438,2]
[353120828,1739566305081,-558.34,0.00014438,2]
[353120829,1739566305091,-564.14,0.00014438,2]
[353120830,1739566305101,-500.0,0.00014438,2]
[353120831,1739566305110,-500.0,0.00014438,2]
[353120832,1739566305120,-513.62,0.00014438,2]
[353120833,1739566305129,-500.0,0.00014438,2]
[353120834,1739566305138,-678.74,0.00014438,2]